Cogmind - Beta 14 @@@ ROGUE MODE // 2024.12.29 @ 00:11:16 Player: Derk Result: Self-destructed Performance ------------- Evolutions (4) 2000 Regions Visited (11) 2200 Robots Destroyed (154) 770 Value Destroyed (5931) 5931 Prototype IDs (15) 300 Alien Tech Used (0) 0 Bonus (2360) 2360 TOTAL SCORE: 13561 Bonus ------- High Alert Combat Kills 684 Follower Combat Kills 554 Entered Garrisons 200 Used RIF Installer 1000 Registered with UFD 300 Friendly Fire -378 Cogmind --------- Core Integrity 190/850 Matter 276/300 Energy 253/450 System Corruption 3% Temperature Cool (0) Movement Core (1700) Ox33 Location -6/Factory Parts ------- > --- POWER (2) -------- (None) > --- PROPULSION (4) --- Overtuned Scrapsphere > --- UTILITY (6) ------ Advanced Heat Sink Huge Storage Unit Energy Well Advanced Signal Interpreter Advanced Targeting Computer Relay Coupler [NC] (22) > --- WEAPON (3) ------- Compact Ion Cannon Improved Proton Missile Launcher Great Axe > --- INVENTORY (25) --- Improved Heat Sink High-capacity Matter Pod (200) Improved Particle Charger Hacking Suite Hacking Suite Relay Coupler [NC] (28) Relay Coupler [NC] (25) Coil Gun Mass Driver Improved Datajack Improved Datajack Junk Cannon (7) Vortex Trap DRS Beacon (Ready) Botcube Peak State ------------ > --- POWER ------------ Reinforced Deuterium Engine Light Quantum Reactor > --- PROPULSION ------- Light Treads Improved Medium Treads Overtuned Scrapsphere Overtuned Scrapsphere > --- UTILITY ---------- Advanced Heat Sink Improved Cooling System Huge Storage Unit Advanced Targeting Computer Improved Light Armor Plating System Shield > --- WEAPON ----------- Compact Ion Cannon KE Penetrator Mass Driver > --- INVENTORY -------- Micro Nuclear Core Micro Nuclear Core Light Treads Light Treads Improved Heat Sink Energy Well High-capacity Matter Pod Advanced Signal Interpreter Hacking Suite Hacking Suite Relay Coupler [NC] Relay Coupler [NC] Relay Coupler [NC] Flak Gun Coil Gun Coil Gun Improved Proton Missile Launcher Improved Datajack CPS Tube Junk Cannon Great Axe Vortex Trap DRS Beacon Botcube [Rating: 71] Favorites ----------- Power Micro Nuclear Core Engine Light Ion Engine Power Core Micro Nuclear Core Reactor Light Quantum Reactor Propulsion Wheel Treads Light Treads Wheel Wheel Flight Unit Cooled Cesium-ion Thruster Utility Huge Storage Unit Device Improved Heat Sink Storage Huge Storage Unit Processor Advanced Targeting Computer Hackware System Shield Protection Light Armor Plating Weapon Light Assault Rifle Energy Gun Overtuned Pulse Rifle Energy Cannon Compact Ion Cannon Ballistic Gun Light Assault Rifle Ballistic Cannon Mass Driver Launcher Grenade Launcher Special Weapon Junk Cannon Impact Weapon Hammer Slashing Weapon Katana Special Melee Weapon Datajack Build | -11 -10 -10 -10 -9 -8 -8 -8 -8 -6 -6 -6 ------- Run | Yrd Mat Min Exi Min Mat Sto Rec Scr Fac Gar Fac Slots Evolved 8 | . . . . . 4 . . . 4 . . Power 1 | . . . . . . . . . 1 . . Propulsion 2 | . . . . . 1 . . . 1 . . Utility 4 | . . . . . 2 . . . 2 . . Weapon 1 | . . . . . 1 . . . . . . Parts Attached 269 | 8 40 2 . . 23 57 8 17 48 24 42 Power 18 | 1 4 . . . 2 2 1 . 4 2 2 Engine 11 | 1 4 . . . 2 2 . . 1 1 . Core 6 | . . . . . . . 1 . 3 . 2 Reactor 1 | . . . . . . . . . . 1 . Propulsion 78 | 2 21 . . . 5 19 2 7 12 6 4 Treads 48 | . 10 . . . 4 19 2 4 3 3 3 Leg . | . . . . . . . . . . . . Wheel 29 | 2 11 . . . 1 . . 3 8 3 1 Hover . | . . . . . . . . . . . . Flight 1 | . . . . . . . . . 1 . . Utility 63 | 2 4 1 . . 10 11 2 4 11 9 9 Device 26 | 1 2 . . . 3 4 1 1 6 3 5 Storage 6 | 1 2 . . . 1 . . . . 1 1 Processor 10 | . . . . . 2 1 . . 3 2 2 Hackware 3 | . . . . . . . 1 . 1 . 1 Protection 18 | . . 1 . . 4 6 . 3 1 3 . Artifact . | . . . . . . . . . . . . Weapon 110 | 3 11 1 . . 6 25 3 6 21 7 27 Energy Gun 15 | 1 2 . . . 2 6 . . 3 1 . Energy Cannon 4 | . . . . . . . . . 1 1 2 Ballistic Gun 38 | 2 6 . . . 3 10 2 3 7 2 3 Ballistic Cannon 2 | . . . . . . . . . . . 2 Launcher 18 | . . 1 . . 1 4 . . 3 1 8 Special Weapon 10 | . 2 . . . . . . 2 2 1 3 Impact Weapon 2 | . . . . . . 2 . . . . . Slashing Weapon 14 | . . . . . . 2 . 1 4 1 6 Piercing Weapon . | . . . . . . . . . . . . Special Melee Weapon 7 | . 1 . . . . 1 1 . 1 . 3 Unidentified Prototypes 8 | . . . . . . 5 . 1 2 . . Parts Lost 52 | . 5 . . . 10 7 1 . 5 10 14 Power 9 | . 2 . . . 2 1 . . . . 4 Propulsion 15 | . . . . . 2 2 1 . 1 5 4 Utility 17 | . 1 . . . 3 2 . . 3 4 4 Weapon 11 | . 2 . . . 3 2 . . 1 1 2 Highest Loss Streak 5 | . 3 . . . 4 3 1 . 4 5 5 To Critical Strikes 1 | . . . . . 1 . . . . . . Average Slot Usage (%) 93 | . 97 100 100 100 95 96 97 89 89 95 95 Engine 5 | . 13 14 14 14 7 7 . . 2 3 3 Core 4 | . . . . . . . 9 9 9 3 4 Treads 13 | . 2 . . . 23 26 27 14 2 14 11 Wheel 13 | . 25 28 28 28 3 . . 12 23 11 12 Device 8 | . 12 . . . 3 8 6 3 12 12 14 Storage 9 | . 14 14 14 14 11 9 9 9 6 9 6 Processor 4 | . . . . . 8 7 9 5 1 5 7 Hackware 1 | . . . . . . . . . 1 6 5 Protection 8 | . . 14 14 14 12 10 9 10 9 3 3 Energy Gun 2 | . 8 . . . 1 3 . . 5 3 . Ballistic Gun 12 | . 16 14 14 14 23 17 17 11 6 5 4 Launcher 1 | . . 10 14 14 . . . . . . 1 Slashing Weapon 3 | . . . . . . . 9 7 3 2 4 Special Melee Weapon 1 | . . . . . . . . 5 . . . Peak Build Rating 71 | 8 9 9 10 10 18 34 31 42 63 69 71 Average Rating 34 | 5 7 8 9 10 13 25 29 31 53 64 60 On Entrance 22 | . 8 8 9 10 10 18 24 24 42 54 66 Naked Turns . | . . . . . . . . . . . . Heaviest Build 134 | 13 88 90 90 90 94 104 97 112 129 133 134 Greatest Support 72 | 20 26 20 20 20 60 64 64 65 65 72 70 Greatest Overweight (x) 33 | . 4 4 4 4 3 4 1 3 5 16 33 Average Overweight (x) 3 | . 3 4 4 4 1 1 1 2 3 5 9 Largest Inventory Capacity 25 | 8 25 25 25 25 25 25 25 25 25 25 25 Average Capacity 24 | 6 24 25 25 25 25 25 25 25 25 25 25 Most Carried 25 | 8 18 18 23 24 23 25 25 25 25 25 25 Average Carried 22 | 5 11 17 21 23 18 24 21 24 23 23 21 Final Capacity 25 | 8 25 25 25 25 25 25 25 25 25 25 25 Final Carried 25 | 8 17 18 23 24 20 22 25 25 22 25 16 Class Distribution -------------------- 23% | Commander-Mutant 22% | Scavenger-Mutant 17% | Mutant 12% | Scavenger-Scrapper 10% | Scavenger-Gunner 4% | Commander-Scrapper 3% | Gunner 3% | Scavenger-Tank Dominant Class ---------------- Mutant | -10/Materials Mutant | -10/Mines Mutant | -10/Exiles Mutant | -9/Mines Scavenger-Tank | -8/Materials Scavenger-Mutant | -8/Storage Commander-Mutant | -8/Recycling Commander-Mutant | -8/Scraptown Scavenger-Scrapper | -6/Factory Scavenger-Mutant | -6/Garrison Scavenger-Mutant | -6/Factory Resources | -11 -10 -10 -10 -9 -8 -8 -8 -8 -6 -6 -6 ----------- Run | Yrd Mat Min Exi Min Mat Sto Rec Scr Fac Gar Fac Matter Collected 4865 | 210 499 . 312 . 303 1304 97 184 799 345 812 Remotely . | . . . . . . . . . . . . Salvage Created 6972 | 162 572 . . . 453 1848 96 . 1402 656 1783 Parts 366 | 12 31 . . . 28 117 6 . 70 32 70 Haulers Intercepted 3 | . 1 . . . . 1 . . 1 . . Recyclers Shooed 1 | . . . . . 1 . . . . . . Parts Field Recycled . | . . . . . . . . . . . . Retrieved Matter . | . . . . . . . . . . . . Parts Self-Destructed . | . . . . . . . . . . . . Prevented . | . . . . . . . . . . . . Kills | -11 -10 -10 -10 -9 -8 -8 -8 -8 -6 -6 -6 ------- Run | Yrd Mat Min Exi Min Mat Sto Rec Scr Fac Gar Fac Combat Hostiles Destroyed 113 | . 15 . . . 8 33 . . 17 12 28 Guns 63 | . 15 . . . 6 27 . . 7 7 1 Cannons 16 | . . . . . . . . . 3 2 11 AOE 23 | . . . . . 2 6 . . 1 1 13 Classes Destroyed 16 | 3 5 . . . 3 2 . . 2 . 1 Worker 14 | 1 1 . . . 1 6 . . 5 . . Builder 6 | . . . . . . 2 . . 3 . 1 Tunneler 4 | 3 1 . . . . . . . . . . Hauler 3 | . 1 . . . . 1 . . 1 . . Recycler 3 | 1 . . . . . . 1 . 1 . . Mechanic 1 | . . . . . . . . . . . 1 Operator 2 | . 1 . . . . 1 . . . . . Watcher 7 | . 1 . . . 2 2 . . 2 . . Swarmer 24 | . 8 . . . . 8 . . . 5 3 Grunt 53 | . 7 . . . 4 14 . . 8 2 18 Brawler 4 | . . . . . 1 . . . . 1 2 Duelist 4 | . . . . . . 1 . . 1 1 1 Sentry 19 | . . . . . 2 10 . . 3 2 2 Hunter 4 | . . . . . 1 . . . 2 . 1 Programmer 4 | . . . . . . . . . 3 . 1 Behemoth 2 | . . . . . . . . . 1 1 . Best Kill Streak 9 | 3 3 . . . 4 9 1 . 7 3 5 Combat Bots Only 8 | . 3 . . . 3 8 . . 5 3 4 Max Kills in Single Turn 4 | 1 1 . . . 1 4 1 . 2 2 4 Gunslinging 1 | . . . . . . 1 . . . 1 . Exploded 3 | . . . . . 1 3 . . 1 1 3 Melee . | . . . . . . . . . . . . Uniques/NPCs Destroyed 1 | . . . . . . . 1 . . . . 01-MTF (-8/Recycling) Combat | -11 -10 -10 -10 -9 -8 -8 -8 -8 -6 -6 -6 -------- Run | Yrd Mat Min Exi Min Mat Sto Rec Scr Fac Gar Fac Hostile Shots Fired 1009 | . 136 . . . 62 215 2 . 200 149 245 Missed 348 | . 41 . . . 14 73 1 . 78 41 100 Damage Taken 9385 | . 1096 . . . 886 2186 93 . 1692 1426 2006 Core 1201 | . 223 . . . 104 198 16 . 197 201 262 Absorbed by Shields 89 | . . . . . . . . . 83 . 6 Ignored by Resistances 262 | . . . . . . . . . 220 42 . Regen/Repaired (Parts) 253 | . 138 . . . . . . . 115 . . Core Remaining (%) 50 | 100 . . . 10 . . . 42 . . . Volleys Fired 425 | 14 87 . . . 42 95 . . 76 35 76 Largest 3 | 2 2 . . . 3 3 . . 3 3 3 Hottest 190 | 70 100 . . . 93 139 . . 190 170 180 Shots Fired 856 | 28 158 . . . 111 228 4 . 161 59 107 Gun 692 | 28 155 . . . 107 214 4 . 122 37 25 Cannon 90 | . . . . . . . . . 18 13 59 Launcher 47 | . . . . . 4 14 . . 7 3 19 Special 27 | . 3 . . . . . . . 14 6 4 Kinetic 526 | 14 98 . . . 101 186 4 . 57 36 30 Thermal 255 | 14 60 . . . 4 26 . . 83 14 54 Explosive 4 | . . . . . 4 . . . . . . Electromagnetic 47 | . . . . . 2 16 . . 7 3 19 Impact 19 | . . . . . . . . . 14 5 . Robot Hit Streak 29 | 4 13 . . . 11 29 5 . 12 20 16 Robot Miss Streak 7 | 3 4 . . . 6 7 1 . 4 2 4 Penetration Max 1 | . . . . . . . . . 1 . 1 Secondary Targets 12 | . 5 . . . . 6 . . . 1 . Max Gunslinging Chain 1 | . 1 . . . . 1 . . . 1 . Shots Hit Robots 596 | 15 101 . . . 69 164 6 . 109 51 81 Core Hits 314 | 6 38 . . . 38 85 3 . 53 22 69 Critical Kills 2 | . . . . . . . . . 2 . . Critical Parts Destroyed 10 | . 1 . . . 1 1 . . 2 5 . Critical Strikes 19 | 1 2 . . . 1 2 . . 8 5 . Burn 7 | 1 1 . . . . 1 . . 4 . . Destroy 7 | . 1 . . . 1 1 . . 1 3 . Smash 5 | . . . . . . . . . 3 2 . Melee Attacks 84 | . . . . . . 8 3 . 45 7 21 Impact 3 | . . . . . . 3 . . . . . Slashing 78 | . . . . . . 4 3 . 43 7 21 Piercing . | . . . . . . . . . . . . Sneak Attacks 10 | . . . . . . 1 1 . 8 . . Combat Hostiles . | . . . . . . . . . . . . Follow-up Attacks . | . . . . . . . . . . . . Damage Inflicted 15479 | 209 1039 . . . 799 3434 226 . 4036 1761 3975 Guns 6888 | 209 1039 . . . 536 2226 88 . 1696 641 453 Cannons 1932 | . . . . . . . . . 375 308 1249 Explosions 4479 | . . . . . 263 1176 . . 642 125 2273 Melee 1128 | . . . . . . 32 138 . 518 440 . Ramming . | . . . . . . . . . . . . Kinetic 4972 | 82 549 . . . 469 1856 88 . 784 621 523 Thermal 4189 | 127 490 . . . 39 345 . . 1456 328 1404 Explosive 388 | . . . . . 263 . . . . . 125 Electromagnetic 3750 | . . . . . 28 1201 . . 473 125 1923 Impact 1084 | . . . . . . 32 . . 805 247 . Slashing 1096 | . . . . . . . 138 . 518 440 . Piercing . | . . . . . . . . . . . . Highest Corruption 13 | . . . . . 12 13 13 . 1 1 3 Average Corruption 6 | . . . . . 11 12 13 . 1 1 1 Corruption Purged . | . . . . . . . . . . . . Corruption Blocked . | . . . . . . . . . . . . Effects 172 | . . . . . 3 111 21 . 19 4 14 Message Errors 34 | . . . . . 1 23 2 . 2 2 4 Matter Fused 44 | . . . . . . 27 5 . 7 . 5 Heat Flow Errors 24 | . . . . . 1 15 3 . 3 . 2 Energy Discharges 18 | . . . . . . 11 2 . 1 2 2 Parts Rejected 1 | . . . . . . 1 . . . . . Data Loss (minor) 15 | . . . . . . 11 2 . 1 . 1 Data Loss (major) 11 | . . . . . . 6 2 . 3 . . Misfires 12 | . . . . . . 6 4 . 2 . . Alerts 3 | . . . . . . 3 . . . . . Misdirections 3 | . . . . . . 2 1 . . . . Weapon Failures 7 | . . . . . 1 6 . . . . . Overload Shots . | . . . . . . . . . . . . Overflow Damage 559 | . . . . . . 15 . . 318 166 60 Projectiles 310 | . . . . . . . . . 172 115 23 Explosions 38 | . . . . . . 1 . . . . 37 Melee 211 | . . . . . . 14 . . 146 51 . Knockbacks 6 | . . . . . . . . . 4 1 1 Impact 5 | . . . . . . . . . 4 1 . Kinetic 1 | . . . . . . . . . . . 1 Secondary . | . . . . . . . . . . . . Self-Inflicted Damage 477 | . . . . . 113 60 . . 98 5 201 Shots 20 | . . . . . 1 5 . . 2 1 11 Rammed . | . . . . . . . . . . . . Targets Rammed . | . . . . . . . . . . . . Kicked . | . . . . . . . . . . . . Crushed . | . . . . . . . . . . . . Highest Temperature 351 | 81 146 . . . 111 351 237 . 304 321 235 Average Temperature 69 | 30 40 . . . 21 85 111 . 98 118 64 Received Heat Transfer 3146 | . 249 . . . 216 972 9 . 544 561 595 Effects 1 | . . . . . . 1 . . . . . Energy Bleed 1 | . . . . . . 1 . . . . . Siege Activations . | . . . . . . . . . . . . Robots Corrupted 10 | . . . . . . . . . 5 2 3 Combat Hostiles 10 | . . . . . . . . . 5 2 3 Parts Fried 14 | . . . . . . 2 . . 6 1 5 Impact Corruptions 11 | . . . . . . 1 . . 6 4 . Robots Melted 1 | . . . . . . . . . 1 . . Combat Hostiles 1 | . . . . . . . . . 1 . . Parts Melted 9 | 2 1 . . . . 1 . . 5 . . Heat Transferred 7903 | 444 1458 . . . 111 814 . . 3002 457 1617 Parts Sabotaged 4 | . . . . . . . . . . . 4 Parts Stolen . | . . . . . . . . . . . . Parts Stripped . | . . . . . . . . . . . . Power Chain Reactions 2 | . . . . . . . . . . . 2 Alert | -11 -10 -10 -10 -9 -8 -8 -8 -8 -6 -6 -6 ------- Run | Yrd Mat Min Exi Min Mat Sto Rec Scr Fac Gar Fac Peak Influence 1019 | 25 206 30 . . 188 803 338 . 450 629 1019 Initial 329 | . 16 30 . . . 26 312 . . 301 329 Average 224 | 6 81 30 . . 83 261 292 . 132 450 507 Maximum Alert Level 3 | . 1 . . . . 3 1 . 2 2 3 Low Security (%) 57 | 100 92 100 . 100 100 48 17 . 80 . . Level 1 20 | . 7 . . . . 29 82 . 3 40 31 Level 2 17 | . . . . . . 10 . . 15 59 49 Level 3 5 | . . . . . . 11 . . . . 19 Level 4 . | . . . . . . . . . . . . Level 5 . | . . . . . . . . . . . . High Security . | . . . . . . . . . . . . Max Security . | . . . . . . . . . . . . Squads Dispatched 31 | . 4 . . . . 5 . . 11 . 11 Investigation 9 | . 2 . . . . 1 . . 5 . 1 Extermination 4 | . . . . . . . . . 3 . 1 Reinforcement 8 | . 2 . . . . 2 . . 2 . 2 Assault 7 | . . . . . . 2 . . 1 . 4 Garrison 3 | . . . . . . . . . . . 3 Intercept . | . . . . . . . . . . . . Searches Triggered . | . . . . . . . . . . . . Construction Impeded 3 | . . . . . . 1 . . 1 . 1 Haulers Reinforced 1 | . . . . . . . . . 1 . . Active Scanning Responses . | . . . . . . . . . . . . Cargo Convoy Interrupts . | . . . . . . . . . . . . Stealth | -11 -10 -10 -10 -9 -8 -8 -8 -8 -6 -6 -6 --------- Run | Yrd Mat Min Exi Min Mat Sto Rec Scr Fac Gar Fac Distress Signals 4 | . 1 . . . 2 1 . . . . . Communications Jammed . | . . . . . . . . . . . . Distress Signals . | . . . . . . . . . . . . Times Spotted 186 | . 23 . . . 14 52 5 . 40 14 38 Peak Tracking Total 6 | . 4 . . . 3 6 4 . 5 5 6 Tactical Retreats 11 | . 1 . . . 1 7 . . . 1 1 Traps | -11 -10 -10 -10 -9 -8 -8 -8 -8 -6 -6 -6 ------- Run | Yrd Mat Min Exi Min Mat Sto Rec Scr Fac Gar Fac Traps Triggered 8 | . 2 . . . . 2 . . . 4 . Indirectly . | . . . . . . . . . . . . Trap Hack Attempts 82 | . 50 . . . . 32 . . . . . Triggered 1 | . 1 . . . . . . . . . . Disarmed . | . . . . . . . . . . . . Reprogrammed 8 | . 6 . . . . 2 . . . . . Reused 1 | . 1 . . . . . . . . . . Traps Extracted . | . . . . . . . . . . . . Installed . | . . . . . . . . . . . . Triggered 2 | . 1 . . . . 1 . . . . . Most Traps Carried 1 | . . . . . . . . 1 1 1 1 Machines | -11 -10 -10 -10 -9 -8 -8 -8 -8 -6 -6 -6 ---------- Run | Yrd Mat Min Exi Min Mat Sto Rec Scr Fac Gar Fac Machines Disabled 29 | . . . . . 1 4 . . 8 2 14 Max in Single Turn 6 | . . . . . 1 1 . . 3 1 6 Garrison Access 3 | . . . . . . 1 . . 1 . 1 Garrison Relay 2 | . . . . . . . . . . 2 . Machines Repaired . | . . . . . . . . . . . . Machines Dismantled . | . . . . . . . . . . . . Machines Sabotaged . | . . . . . . . . . . . . Overloaded Fab Kills . | . . . . . . . . . . . . Hacking | -11 -10 -10 -10 -9 -8 -8 -8 -8 -6 -6 -6 --------- Run | Yrd Mat Min Exi Min Mat Sto Rec Scr Fac Gar Fac Machines Accessed 46 | . 9 . 1 . 1 8 1 8 13 1 4 Terminals 24 | . 6 . . . 1 7 1 . 7 1 1 Fabricators 2 | . . . . . . . . . 2 . . Repair Stations 2 | . 1 . . . . . . . 1 . . Recycling Units 3 | . 2 . . . . . . . 1 . . Scanalyzers 3 | . . . . . . . . . 1 . 2 Garrison Access 3 | . . . . . . 1 . . 1 . 1 Total Hacks 145 | . 27 . 1 . 1 20 5 47 26 3 15 Successful 95 | . 14 . 1 . . 8 3 47 12 1 9 Failed 50 | . 13 . . . 1 12 2 . 14 2 6 Catastrophic 7 | . . . . . . 2 1 . 1 1 2 Database Lockouts . | . . . . . . . . . . . . Manual 43 | . 14 . . . . 2 4 . 14 3 6 Terminals 66 | . 21 . . . 1 17 5 . 16 3 3 Fabricators 2 | . . . . . . . . . 2 . . Repair Stations 3 | . 2 . . . . . . . 1 . . Recycling Units 5 | . 4 . . . . . . . 1 . . Scanalyzers 12 | . . . . . . . . . 4 . 8 Garrison Access 9 | . . . . . . 3 . . 2 . 4 Terminal Hacks 61 | . 7 . 1 . . 5 1 47 . . . Record 47 | . . . 1 . . . . 46 . . . Robot Analysis 1 | . . . . . . 1 . . . . . Open Door 3 | . . . . . . 3 . . . . . Branch Access Points 1 | . 1 . . . . . . . . . . Terminal Index 1 | . 1 . . . . . . . . . . Unreport Threat 1 | . 1 . . . . . . . . . . Locate Traps 3 | . 2 . . . . 1 . . . . . Zone Layout 3 | . 2 . . . . . 1 . . . . Derelict Proto ID Bank 1 | . . . . . . . . 1 . . . Fabricator Hacks 2 | . . . . . . . . . 2 . . Build 2 | . . . . . . . . . 2 . . Repair Station Hacks 2 | . 2 . . . . . . . . . . Scan Component 1 | . 1 . . . . . . . . . . Repair 1 | . 1 . . . . . . . . . . Recycling Unit Hacks . | . . . . . . . . . . . . Scanalyzer 10 | . . . . . . . . . 3 . 7 Insert Component 5 | . . . . . . . . . 1 . 4 Analyze 5 | . . . . . . . . . 2 . 3 Garrison Access Hacks 3 | . . . . . . 1 . . 1 . 1 Unlock Access 2 | . . . . . . . . . 1 . 1 Seal Access 1 | . . . . . . 1 . . . . . Unauthorized Hacks 17 | . 5 . . . . 2 2 . 6 1 1 Terminals 12 | . 3 . . . . 2 2 . 4 1 . Track 5 | . 2 . . . . . 1 . 1 1 . Botnet 6 | . 1 . . . . 2 1 . 2 . . Operators 1 | . . . . . . . . . 1 . . Fabricators . | . . . . . . . . . . . . Repair Stations 2 | . . . . . . . . . 2 . . Patch 1 | . . . . . . . . . 1 . . Recycling Units 2 | . 2 . . . . . . . . . . Tunnel 2 | . 2 . . . . . . . . . . Scrapoids 1 | . . . . . . . . . 1 . . Scanalyzers . | . . . . . . . . . . . . Garrison Access 1 | . . . . . . . . . . . 1 Watchers 1 | . . . . . . . . . . . 1 Data Cores Recovered . | . . . . . . . . . . . . Used . | . . . . . . . . . . . . Hacking Detections 28 | . 6 . . . 1 6 1 . 9 1 4 Full Trace Events 4 | . . . . . . 1 . . 2 . 1 Feedback Events . | . . . . . . . . . . . . Feedback Blocked . | . . . . . . . . . . . . Robot Schematics Acquired . | . . . . . . . . . . . . Robots Built 2 | . . . . . . . . . 2 . . Authchips . | . . . . . . . . . . . . Time 76 | . . . . . . . . . 76 . . Total Robot Build Rating 10 | . . . . . . . . . 10 . . Part Schematics Acquired 4 | . . . . . . . . . 1 . 3 Parts Built 2 | . . . . . . . . . 2 . . Authchips . | . . . . . . . . . . . . Time 35 | . . . . . . . . . 35 . . Total Part Build Rating 12 | . . . . . . . . . 12 . . Parts Repaired 1 | . 1 . . . . . . . . . . Time 26 | . 26 . . . . . . . . . . Parts Recycled . | . . . . . . . . . . . . Recycled Matter . | . . . . . . . . . . . . Retrieved Matter . | . . . . . . . . . . . . Retrieved Components . | . . . . . . . . . . . . Parts Scanalyzed 5 | . . . . . . . . . 1 . 4 Part Schematics Acquired 4 | . . . . . . . . . 1 . 3 Parts Damaged 2 | . . . . . . . . . 1 . 1 Bothacking | -11 -10 -10 -10 -9 -8 -8 -8 -8 -6 -6 -6 ------------ Run | Yrd Mat Min Exi Min Mat Sto Rec Scr Fac Gar Fac Used RIF Installer 2 | . . . . . . . . . . 2 . Signal Jammer 1 | . . . . . . . . . . 1 . Robots Hacked 3 | . . . . . . . . . 2 . 1 Non-combat 3 | . . . . . . . . . 2 . 1 Combat . | . . . . . . . . . . . . Robot Hacks Applied 5 | . . . . . . . . . 2 . 3 parse_system 1 | . . . . . . . . . 1 . . generate_echo 1 | . . . . . . . . . . . 1 find_chute 1 | . . . . . . . . . 1 . . find_recycling 1 | . . . . . . . . . . . 1 link_fov 1 | . . . . . . . . . . . 1 Relay Couplers Released 12 | . . . . . . . . . 2 9 1 Machine Destruction 12 | . . . . . . . . . 2 9 1 Attached 1 | . . . . . . . . . . . 1 Fabnet Peak Effective % . | . . . . . . . . . . . . Robots Rewired 8 | . . . . . . . 8 . . . . Allies Hacked . | . . . . . . . . . . . . Hacks Repelled . | . . . . . . . . . . . . Allies | -11 -10 -10 -10 -9 -8 -8 -8 -8 -6 -6 -6 -------- Run | Yrd Mat Min Exi Min Mat Sto Rec Scr Fac Gar Fac Total Allies 25 | . . . . . . 10 8 . 7 . . Largest Group 13 | . . . . . . 10 13 13 13 . . Highest-Rated Group 205 | . . . . . . 173 190 190 205 . . Highest-Rated Ally 31 | . . . . . . 29 29 27 31 . . Total Orders 2 | . . . . . . . . . 2 . . FOLLOW 1 | . . . . . . . . . 1 . . TUNNEL 1 | . . . . . . . . . 1 . . Ally Attacks 133 | . . . . . . 9 28 . 96 . . Total Damage 1740 | . . . . . . 94 296 . 1350 . . Kills 17 | . . . . . . 1 5 . 11 . . Allies Corrupted . | . . . . . . . . . . . . Allies Melted . | . . . . . . . . . . . . Intel | -11 -10 -10 -10 -9 -8 -8 -8 -8 -6 -6 -6 ------- Run | Yrd Mat Min Exi Min Mat Sto Rec Scr Fac Gar Fac Robot Analysis Total 1 | . . . . . . 1 . . . . . Derelict Logs Recovered 1 | . . 1 . . . . . . . . . Drone Launches . | . . . . . . . . . . . . Drone Recoveries . | . . . . . . . . . . . . Exploration | -11 -10 -10 -10 -9 -8 -8 -8 -8 -6 -6 -6 ------------- Run | Yrd Mat Min Exi Min Mat Sto Rec Scr Fac Gar Fac Turns Passed 14723 | 106 1572 355 334 144 481 2832 482 3452 2858 920 1187 Spaces Moved 7445 | 55 816 248 236 103 137 967 180 1996 1891 380 436 Core 4 | 3 . . . . . . . . . . 1 Treads 2198 | . . . . . 111 967 180 796 10 92 42 Legs . | . . . . . . . . . . . . Wheels 5243 | 52 816 248 236 103 26 . . 1200 1881 288 393 Hover . | . . . . . . . . . . . . Flight . | . . . . . . . . . . . . Fastest Speed 50 | 50 80 140 140 140 125 230 230 125 101 140 130 Average Speed 163 | 78 138 140 140 140 218 236 233 168 120 186 193 Slowest Speed 1700 | 80 140 140 140 140 240 480 235 235 545 320 1700 Overloaded Moves . | . . . . . . . . . . . . Propulsion Burnouts . | . . . . . . . . . . . . Robots Hopped . | . . . . . . . . . . . . Cave-ins Triggered . | . . . . . . . . . . . . Exploration Rate (%) 46 | 5 97 61 58 21 10 93 36 94 34 38 11 Regions Visited 11 Branch Regions 6 Pre-discovered Areas 8 | . 2 1 1 1 . . . 3 . . . Known Exits Taken 3 | . 1 . . . 1 . . . 1 . . Unknown Exits Taken 7 | 1 . 1 1 1 . 1 1 1 . . . Scrap Searched 9 | . . . . 1 . . . 8 . . . Spaces Dug 64 | . 3 . . . . 4 1 . 35 . 21 Terrain Destroyed 267 | . 3 . . . 74 4 1 . 109 5 71 Melee 61 | . . . . . . 4 1 . 35 . 21 Projectile 21 | . 3 . . . . . . . 3 5 10 AOE 185 | . . . . . 74 . . . 71 . 40 Terrain Rammed . | . . . . . . . . . . . . Walls Destroyed . | . . . . . . . . . . . . Machines Disabled . | . . . . . . . . . . . . Actions | -11 -10 -10 -10 -9 -8 -8 -8 -8 -6 -6 -6 --------- Run | Yrd Mat Min Exi Min Mat Sto Rec Scr Fac Gar Fac Total 9124 | 85 1094 255 240 103 246 1331 239 2087 2300 516 628 Wait 559 | 2 86 5 . . 35 112 1 38 197 41 42 Move 7434 | 54 815 247 235 102 136 966 179 1995 1890 379 436 Hop . | . . . . . . . . . . . . Pick Up 104 | 7 10 1 5 1 8 22 7 13 16 8 6 Fast Attach 46 | 7 2 . . . 1 13 1 3 10 7 2 Attach 67 | . 4 . . . 12 11 3 5 10 9 13 Detach 14 | . . . . . . 2 1 5 4 2 . Swap 156 | 1 34 2 . . 10 33 4 9 28 8 27 Drop 102 | . 6 . . . 2 37 5 19 24 4 5 Fire 425 | 14 87 . . . 42 95 . . 76 35 76 Melee 84 | . . . . . . 8 3 . 45 7 21 Ram . | . . . . . . . . . . . . Kick . | . . . . . . . . . . . . Crush . | . . . . . . . . . . . . Escape Stasis 16 | . . . . . . . . . . 16 . Rewire 35 | . . . . . . . 35 . . . . Trap 82 | . 50 . . . . 32 . . . . . Miscellaneous . | . . . . . . . . . . . . Route ------- -11/Scrapyard -10/Materials (discovered 4 exits: [*Mat x3] / *Min) -10/Mines -10/Exiles -9/Mines -8/Materials -8/Storage (discovered 2 exits: [*Fac] / *Rec) -8/Recycling -8/Scraptown (discovered 2 exits: *Fac x2) -6/Factory (discovered 3 exits: *Low x2 / Gar) -6/Garrison -6/Factory History --------- Turn | Location | Event 5 | -11/Scrapyard | Discovered new exit (range 16) 107 | -11/Scrapyard | Entered Materials 318 | -10/Materials | Build established: Mutant 474 | -10/Materials | Discovered new exit (range 4) 579 | -10/Materials | Identified exit to Mines 657 | -10/Materials | Discovered new exit (range 3) 798 | -10/Materials | Core integrity fell below 50% 831 | -10/Materials | Lost 3 parts (1p2w) 1249 | -10/Materials | Core integrity fell below 20% 1363 | -10/Materials | Discovered new exit (range 7) 1563 | -10/Materials | Build established: Scavenger-Mutant 1631 | -10/Materials | Repaired Lgt. Treads? 1679 | -10/Materials | Entered Mines 1691 | -10/Mines | Learned location of Zion (-7) 1752 | -10/Mines | YI-UF0 nonchalantly dropped a Grenade Launcher on the ground 2029 | -10/Mines | Deemed a non-threat by the Exiles lab entrance 2029 | -10/Mines | Discovered new exit (range 5) 2034 | -10/Mines | Entered Exiles 2065 | -10/Exiles | Build established: Mutant 2072 | -10/Exiles | Met 8R-AWN 2096 | -10/Exiles | Met EX-HEX 2158 | -10/Exiles | Met EX-DEC 2301 | -10/Exiles | Discovered new exit (range 12) 2368 | -10/Exiles | Entered Mines 2502 | -9/Mines | Discovered new exit (range 7) 2510 | -9/Mines | Learned location of Storage (-8) 2512 | -9/Mines | Entered Materials 2512 | -8/Materials | Evolved 4 slots: Propulsion x1, Utility x2, Weapon x1 2608 | -8/Materials | Lost 4 parts (1p2n1w) 2878 | -8/Materials | Discovered new exit (range 10) 2963 | -8/Materials | System corruption reached 10% 2992 | -8/Materials | Identified exit to Storage 2993 | -8/Materials | Lost 3 parts (2u1w) 2993 | -8/Materials | Entered Storage 4161 | -8/Storage | Build established: Scavenger-Mutant 4612 | -8/Storage | Build established: Scavenger-Gunner 4931 | -8/Storage | Discovered new exit (range 15) 5318 | -8/Storage | Destroyed 8 combat bots 5393 | -8/Storage | First assault squad dispatched 5451 | -8/Storage | Core integrity fell below 50% 5531 | -8/Storage | Lost 3 parts (1p2w) 5532 | -8/Storage | Met 01-MTF 5675 | -8/Storage | Build established: Scavenger-Mutant 5774 | -8/Storage | Assisted by bots powering up and referring to "LRC-V3" 5815 | -8/Storage | Discovered new exit (range 3) 5825 | -8/Storage | Entered Recycling 5825 | -8/Recycling | Accompanied by 11 allies (01-MTF) 5964 | -8/Recycling | Allies destroyed 01-MTF 6032 | -8/Recycling | Lost 5 allies 6249 | -8/Recycling | Scanned before Scraplab entrance 6285 | -8/Recycling | Entered Scraplab 6304 | -8/Recycling | Discovered new exit (range 2) 6307 | -8/Recycling | Entered Scraptown 6307 | -8/Scraptown | Accompanied by 13 allies 6307 | -8/Scraptown | System corruption cleaned by C-Scrubber 6323 | -8/Scraptown | Build established: Commander-Mutant 6769 | -8/Scraptown | Visited Bundlers 6921 | -8/Scraptown | Visited Cyclists 6965 | -8/Scraptown | Visited Red Mages 7457 | -8/Scraptown | Visited Fellowship of the Rings 7529 | -8/Scraptown | Visited Shadow of the Wyrm 7931 | -8/Scraptown | Visited Cave Peace 8001 | -8/Scraptown | Discovered new exit (range 11) 8122 | -8/Scraptown | Visited The Evicted 8164 | -8/Scraptown | Visited UFD Registry 8164 | -8/Scraptown | Registered with UFD as "Fissionroller" 8196 | -8/Scraptown | Visited Botcube Research 8206 | -8/Scraptown | Found Botcube 8245 | -8/Scraptown | Visited Science Guys 8289 | -8/Scraptown | Visited Junk Cannon Lab 8323 | -8/Scraptown | Found Prototype Special Weapon 8339 | -8/Scraptown | Identified Junk Cannon 8351 | -8/Scraptown | Visited Scrap Suit Storage 8364 | -8/Scraptown | Found Scrap Suit 8394 | -8/Scraptown | Visited Derelict Rescue Squad 8402 | -8/Scraptown | Found DRS Beacon 8427 | -8/Scraptown | Visited Scrapoid Pod Storage 8464 | -8/Scraptown | Visited Science Testing Area 8494 | -8/Scraptown | Visited Chapter 10 8533 | -8/Scraptown | Visited Curators Association 8962 | -8/Scraptown | Entered Cyclist Reading Room 9484 | -8/Scraptown | Build established: Commander-Scrapper 9733 | -8/Scraptown | Discovered new exit (range 5) 9759 | -8/Scraptown | Entered Factory 9759 | -6/Factory | Accompanied by 13 allies 9759 | -6/Factory | Evolved 4 slots: Power x1, Propulsion x1, Utility x2 10059 | -6/Factory | Lost 3 allies 10070 | -6/Factory | Scrapoid reinforcements arrived 10109 | -6/Factory | Lost 7 allies 10252 | -6/Factory | Found Scrap Suit 10511 | -6/Factory | Build established: Scavenger-Scrapper 10616 | -6/Factory | Fabricated Mass Driver? 10680 | -6/Factory | Fabricated E-15 Imp? 11054 | -6/Factory | Discovered new exit (range 8) 11080 | -6/Factory | Identified exit to Garrison 11095 | -6/Factory | Discovered new exit (range 16) 11113 | -6/Factory | Identified exit to Lower Caves 11598 | -6/Factory | Spotted B-75 Beast 12063 | -6/Factory | Destroyed B-75 Beast 12073 | -6/Factory | Lost 4 parts (1n2u1w) 12466 | -6/Factory | Build established: Mutant 12617 | -6/Factory | Entered Garrison 12745 | -6/Garrison | Installed Relay Interface Framework 12759 | -6/Garrison | Triggered checkpoint 12904 | -6/Garrison | Garrison Relay disabled 12948 | -6/Garrison | Build established: Scavenger-Mutant 12982 | -6/Garrison | Spotted B-75 Beast 12987 | -6/Garrison | Triggered checkpoint 13030 | -6/Garrison | Destroyed B-75 Beast 13060 | -6/Garrison | Lost 5 parts (2n2u1w) 13247 | -6/Garrison | Triggered checkpoint 13320 | -6/Garrison | Lost 5 parts (3n2u) 13347 | -6/Garrison | Expanded RIF knowledge: Signal Jamming 13430 | -6/Garrison | Garrison Relay disabled 13520 | -6/Garrison | Discovered new exit (range 12) 13537 | -6/Garrison | Entered Factory 13577 | -6/Factory | Identified exit to Garrison 13696 | -6/Factory | Core integrity fell below 50% 13887 | -6/Factory | First assault squad dispatched 14144 | -6/Factory | Garrison activated, responded to threat 14675 | -6/Factory | Lost 5 parts (2p2n1w) 14724 | -6/Factory | Self-destructed Last Messages --------------- 14657_ Acquired 99 matter. 14662_ Ovr. Scrapsphere suddenly begins malfunctioning. 14669_ System corrupted: Matter fused (-10). 14692_ C-30 ARC bursts open, deploying its payload. 14692_ G-67 Veteran unfolds itself. 14692_ G-50 Soldier unfolds itself. 14692_ M-28 Smith unfolds itself. 14692_ Flak Gun destroyed. 14698_ Critical hit (Burn: +50). 14698_ Adv. Heat Sink fried. 14698_ G-50 Soldier destroyed. 14698_ Chain reaction triggered in Corrupted Unknown Engine. 14698_ M-28 Smith destroyed. 14698_ G-67 Veteran destroyed. 14698_ G-50 Soldier destroyed. 14698_ Lgt. Treads destroyed. 14702_ G-50 Soldier destroyed. 14704_ Acquired 41 matter. 14706_ System corrupted: Matter fused (-8). 14719_ U-05 Engineer lays Concrete. Map ----- +----------------------------------------------------+ | #####################T ### # | | # | | # | | "" ! + | | "" // ! *%= # | | "" / *%= # | | ########################+########## # | | #???????????????## %=*#???????# # | | #????????????????# #???????### ### | | #????????????????# #?????????? #?? | | #????????????????# =% #?????????? #?? | | #????????????????# =[x==#????????? #?? | | * #????????????????# uu%x=#?????????? #?? | | [ #????????????????# =uu*##?????????? ??? | | ########?????????# =%[#?????????????????? | | #?????????# [=#?????????????????? | | #?????????# #?????????????????? | | % #?????????# /// #?????????????????? | | = #??######## /// #?????????????????? | | %[%[ #? [ ## // #?????????????????? | | #######[ =% #? ## #?????????????????? | | #*=! # ## #?????????????????? | | " """ #! # ## #?????????????????? | | " """%+! + ## #?????????????????? | | " """=#* # ## ! #?????????????????? | | # # ####@######?????????????????? | | # #? #?#;##??????????????????????? | | # #? #?##????????????????????????? | | # #??#######???????????????????????????? | | ####### #????????????????????????????????????? | | ??????# +????????????????????????????????????? | | ??????# #????????????????????????????????????? | | ??????# #????????????????????????????????????? | | ??????# #????????????????????????????????????? | | ?????? #????????????????????????????????????? | | ?????? #????????????????????????????????????? | | ????? #????????????????????????????????????? | | ????? #????????????????????????????????????? | | ??????? ?????????????????????????????????????? | | ????????? ?????????????????????????????????????? | | ?????????????????????????????????????????????????? | | ?????????????????????????????????????????????????? | | ?????????????????????????????????????????????????? | | ?????????????????????????????????????????????????? | | ?????????????????????????????????????????????????? | | ?????????????????????????????????????????????????? | | ?????????????????????????????????????????????????? | | ?????????????????????????????????????????????????? | | ?????????????????????????????????????????????????? | | ?????????????????????????????????????????????????? | +----------------------------------------------------+ Best States ------------- Heat Dissipation 97 Energy Generation 36 Energy Capacity 590 Matter Stores 300 Matter Capacity 300 Sight Range 22 Terrain Scan Density 10 Armor Coverage 300 Resistance: KI 20 Resistance: TH 15 Phase Shifting 15 Evasion (%) 44 Targeting Accuracy 8 Recoil Reduction 3 Defensive Hacking 10 Relay Coupler Types 1 Relay Coupler Value 27 Item Schematics ----------------- Prc. Grenade Launcher | -6/Factory | Scanalyzed Hacking Suite | -6/Factory | Scanalyzed Imp. Datajack | -6/Factory | Scanalyzed Energy Well | -6/Factory | Scanalyzed Robot Schematics ------------------ None Fabricated ------------ Mass Driver | x2 | -6/Factory | Preloaded E-15 Imp | x2 | -6/Factory | Preloaded Alien Tech Used ----------------- None Achievements -------------- None Challenges ------------ None Game ------ Seed ShieldGravityRipteeth Manual? 0 Play Time 02:37:22 Cumulative 363.4 hours Start 2024.12.28 @ 19:12:38 End 2024.12.29 @ 00:11:16 Sessions 5 Manual Loads 0 Difficulty Rogue Special Mode None Game No. 152 Rogue 152 Adventurer 0 Explorer 0 Win Type - Total 12 Types 10/0/1/1/0/0/0/0/0 Lore% 59 Gallery% 77 Achievement% 67 Wizard Run 0 Options --------- Layout 0 ASCII 0 Keyboard 0 Movement Numpad Keybinds 0 Fullscreen 1 Font 24/Smallcaps Map View 76x50 Zoom Use 0% Tactical HUD 1 Map Filters NONE Filters NONE Steam 1 RUN: aebce05d-e4df-46ef-820f-0fc650419d1c